[Event "Titled Tuesday Blitz November 08 Early 2022"]
[White "Sernecki, Franciszek"]
[Black "Kopylov, Alexander A."]
[WhiteFideId "1169297"]
[BlackFideId "4164857"]
[WhiteElo "2210"]
[BlackElo "2436"]
[Result "0-1"]
[Round "01"]
[TimeControl "180+1"]
[Date "2022.11.09"]
[WhiteClock "0:00:48"]
[BlackClock "0:01:44"]

1. c4 {[%clk 0:03:00]}  Nf6 {[%clk 0:02:59]} 2. Nc3 {[%clk 0:03:00]}  e5 {[%clk 0:02:59]} 3. e4 {[%clk 0:03:01]}  Be7 {[%clk 0:02:58]} 4. g3 {[%clk 0:03:02]}  O-O {[%clk 0:02:58]} 5. Bg2 {[%clk 0:03:02]}  c6 {[%clk 0:02:56]} 6. Nge2 {[%clk 0:03:03]}  d6 {[%clk 0:02:55]} 7. O-O {[%clk 0:03:03]}  a6 {[%clk 0:02:54]} 8. a4 {[%clk 0:03:02]}  a5 {[%clk 0:02:54]} 9. d3 {[%clk 0:03:02]}  Na6 {[%clk 0:02:54]} 10. h3 {[%clk 0:03:03]}  Nd7 {[%clk 0:02:52]} 11. f4 {[%clk 0:02:59]}  Bf6 {[%clk 0:02:50]} 12. f5 {[%clk 0:02:59]}  Ndc5 {[%clk 0:02:49]} 13. g4 {[%clk 0:02:56]}  Nb4 {[%clk 0:02:49]} 14. Rf3 {[%clk 0:02:56]}  Bd7 {[%clk 0:02:40]} 15. Be3 {[%clk 0:02:55]}  Ncxd3 {[%clk 0:02:39]} 16. b3 {[%clk 0:02:39]}  Nc5 {[%clk 0:02:31]} 17. Qxd6 {[%clk 0:02:34]}  Be7 {[%clk 0:02:24]} 18. Qd1 {[%clk 0:02:33]}  b6 {[%clk 0:02:13]} 19. Nc1 {[%clk 0:02:20]}  f6 {[%clk 0:02:05]} 20. N1a2 {[%clk 0:02:19]}  Be8 {[%clk 0:02:03]} 21. Rf1 {[%clk 0:02:15]}  Bf7 {[%clk 0:02:02]} 22. Kf2 {[%clk 0:01:53]}  Qc7 {[%clk 0:01:53]} 23. Rb1 {[%clk 0:01:51]}  Rad8 {[%clk 0:01:52]} 24. Qe2 {[%clk 0:01:51]}  Rd3 {[%clk 0:01:50]} 25. Rfd1 {[%clk 0:01:50]}  Rfd8 {[%clk 0:01:50]} 26. Rxd3 {[%clk 0:01:35]}  Rxd3 {[%clk 0:01:51]} 27. Rd1 {[%clk 0:01:35]}  Qd7 {[%clk 0:01:46]} 28. Nxb4 {[%clk 0:00:49]}  axb4 {[%clk 0:01:46]} 29. Rxd3 {[%clk 0:00:49]}  Nxd3+ {[%clk 0:01:45]} 30. Kf3 {[%clk 0:00:47]}  bxc3 {[%clk 0:01:45]} 31. Bxb6 {[%clk 0:00:48]}  c2 {[%clk 0:01:44]} 0-1


[Site "https://www.chess.com"]

[Event "Titled Tuesday Blitz November 08 Early 2022"]
[White "Shuvalov, Evgenij"]
[Black "Swiercz, Dariusz"]
[WhiteFideId "4187237"]
[BlackFideId "1126881"]
[WhiteElo "2049"]
[BlackElo "2627"]
[Result "1/2-1/2"]
[Round "01"]
[TimeControl "180+1"]
[Date "2022.11.08"]
[WhiteClock "0:00:22"]
[BlackClock "0:00:10"]

1. d4 {[%clk 0:02:42]}  Nf6 {[%clk 0:02:59]} 2. c4 {[%clk 0:02:40]}  g6 {[%clk 0:03:00]} 3. Nc3 {[%clk 0:02:39]}  Bg7 {[%clk 0:02:59]} 4. e4 {[%clk 0:02:39]}  d6 {[%clk 0:03:00]} 5. Nf3 {[%clk 0:02:40]}  O-O {[%clk 0:03:01]} 6. Be2 {[%clk 0:02:40]}  Na6 {[%clk 0:03:00]} 7. O-O {[%clk 0:02:40]}  e5 {[%clk 0:03:01]} 8. Be3 {[%clk 0:02:40]}  c6 {[%clk 0:03:01]} 9. d5 {[%clk 0:02:39]}  Ng4 {[%clk 0:03:01]} 10. Bg5 {[%clk 0:02:39]}  f6 {[%clk 0:03:01]} 11. Bh4 {[%clk 0:02:39]}  c5 {[%clk 0:03:02]} 12. h3 {[%clk 0:02:37]}  Nh6 {[%clk 0:03:02]} 13. g4 {[%clk 0:02:38]}  Nf7 {[%clk 0:03:00]} 14. Ne1 {[%clk 0:02:35]}  Bh6 {[%clk 0:02:58]} 15. Ng2 {[%clk 0:02:35]}  Bd7 {[%clk 0:02:56]} 16. a3 {[%clk 0:02:23]}  Bf4 {[%clk 0:02:56]} 17. Bg3 {[%clk 0:02:21]}  g5 {[%clk 0:02:55]} 18. Ne3 {[%clk 0:02:20]}  Nc7 {[%clk 0:02:45]} 19. Nf5 {[%clk 0:02:15]}  Ne8 {[%clk 0:02:45]} 20. Kg2 {[%clk 0:02:10]}  b6 {[%clk 0:02:43]} 21. Rh1 {[%clk 0:02:09]}  Kh8 {[%clk 0:02:35]} 22. h4 {[%clk 0:02:09]}  Rg8 {[%clk 0:01:58]} 23. h5 {[%clk 0:01:48]}  h6 {[%clk 0:01:48]} 24. a4 {[%clk 0:01:48]}  Rb8 {[%clk 0:01:45]} 25. Bd3 {[%clk 0:01:38]}  a6 {[%clk 0:01:40]} 26. Qe2 {[%clk 0:01:38]}  Nc7 {[%clk 0:01:23]} 27. Rhb1 {[%clk 0:01:36]}  Re8 {[%clk 0:01:22]} 28. b4 {[%clk 0:01:30]}  cxb4 {[%clk 0:01:23]} 29. Rxb4 {[%clk 0:01:31]}  a5 {[%clk 0:01:22]} 30. Rb3 {[%clk 0:01:29]}  Na6 {[%clk 0:01:22]} 31. Nb5 {[%clk 0:01:22]}  Bxf5 {[%clk 0:01:18]} 32. exf5 {[%clk 0:01:16]}  Nc5 {[%clk 0:01:12]} 33. Rbb1 {[%clk 0:01:13]}  Re7 {[%clk 0:01:02]} 34. Be4 {[%clk 0:01:10]}  Rc8 {[%clk 0:00:51]} 35. Ra3 {[%clk 0:01:02]}  Kg7 {[%clk 0:00:48]} 36. f3 {[%clk 0:01:00]}  Bxg3 {[%clk 0:00:48]} 37. Kxg3 {[%clk 0:01:00]}  Rb7 {[%clk 0:00:43]} 38. Rc1 {[%clk 0:00:56]}  Qe7 {[%clk 0:00:42]} 39. Rc2 {[%clk 0:00:56]}  Nd8 {[%clk 0:00:42]} 40. Kg2 {[%clk 0:00:56]}  Ra8 {[%clk 0:00:40]} 41. Raa2 {[%clk 0:00:55]}  Rbb8 {[%clk 0:00:38]} 42. Ra3 {[%clk 0:00:55]}  Ndb7 {[%clk 0:00:38]} 43. Raa2 {[%clk 0:00:53]}  Na6 {[%clk 0:00:38]} 44. Rc3 {[%clk 0:00:49]}  Nbc5 {[%clk 0:00:38]} 45. Raa3 {[%clk 0:00:46]}  Nb4 {[%clk 0:00:39]} 46. Ra1 {[%clk 0:00:45]}  Rc8 {[%clk 0:00:38]} 47. Raa3 {[%clk 0:00:42]}  Nca6 {[%clk 0:00:38]} 48. Ra1 {[%clk 0:00:39]}  Rc5 {[%clk 0:00:38]} 49. Rac1 {[%clk 0:00:34]}  Nc7 {[%clk 0:00:36]} 50. Qd2 {[%clk 0:00:27]}  Qd7 {[%clk 0:00:29]} 51. Kg3 {[%clk 0:00:24]}  Rc8 {[%clk 0:00:24]} 52. Na7 {[%clk 0:00:21]}  Ra8 {[%clk 0:00:23]} 53. Nb5 {[%clk 0:00:21]}  Qd8 {[%clk 0:00:21]} 54. Kg2 {[%clk 0:00:20]}  Kf7 {[%clk 0:00:21]} 55. Kg3 {[%clk 0:00:20]}  Ke7 {[%clk 0:00:22]} 56. Kg2 {[%clk 0:00:21]}  Qb8 {[%clk 0:00:22]} 57. Kg3 {[%clk 0:00:21]}  Qb7 {[%clk 0:00:23]} 58. Kg2 {[%clk 0:00:21]}  Rc8 {[%clk 0:00:23]} 59. Kg3 {[%clk 0:00:20]}  Kd7 {[%clk 0:00:16]} 60. Kg2 {[%clk 0:00:19]}  Nxb5 {[%clk 0:00:16]} 61. cxb5 {[%clk 0:00:20]}  Rxc3 {[%clk 0:00:17]} 62. Rxc3 {[%clk 0:00:20]}  Rxc3 {[%clk 0:00:16]} 63. Qxc3 {[%clk 0:00:21]}  Qc7 {[%clk 0:00:16]} 64. Qxc7+ {[%clk 0:00:20]}  Kxc7 {[%clk 0:00:17]} 65. Kf2 {[%clk 0:00:20]}  Na2 {[%clk 0:00:18]} 66. Bc2 {[%clk 0:00:19]}  e4 {[%clk 0:00:09]} 67. fxe4 {[%clk 0:00:17]}  Nb4 {[%clk 0:00:03]} 68. Bb1 {[%clk 0:00:16]}  Kd7 {[%clk 0:00:03]} 69. Ke3 {[%clk 0:00:17]}  Ke7 {[%clk 0:00:04]} 70. Kd4 {[%clk 0:00:17]}  Kd7 {[%clk 0:00:05]} 71. Kc4 {[%clk 0:00:17]}  Ke7 {[%clk 0:00:05]} 72. Kc3 {[%clk 0:00:18]}  Kd7 {[%clk 0:00:06]} 73. Kc4 {[%clk 0:00:18]}  Ke7 {[%clk 0:00:06]} 74. Kc3 {[%clk 0:00:19]}  Kd8 {[%clk 0:00:06]} 75. Kc4 {[%clk 0:00:19]}  Kd7 {[%clk 0:00:07]} 76. Kc3 {[%clk 0:00:20]}  Kc7 {[%clk 0:00:07]} 77. Kc4 {[%clk 0:00:20]}  Kd8 {[%clk 0:00:08]} 78. Kc3 {[%clk 0:00:21]}  Ke7 {[%clk 0:00:09]} 79. Kc4 {[%clk 0:00:21]}  Kf7 {[%clk 0:00:09]} 80. Kc3 {[%clk 0:00:22]}  Kf8 {[%clk 0:00:10]} 81. Kc4 {[%clk 0:00:22]}  Ke7 {[%clk 0:00:10]} 1/2-1/2


[Site "https://www.chess.com"]

[Event "Titled Tuesday Blitz November 08 Early 2022"]
[White "Simonovic, Miroslav"]
[Black "Vlassov, Nikolai"]
[WhiteFideId "919152"]
[BlackFideId "4103360"]
[WhiteElo "2043"]
[BlackElo "2324"]
[Result "0-1"]
[Round "01"]
[TimeControl "180+1"]
[Date "2022.11.09"]
[WhiteClock "0:00:07"]
[BlackClock "0:00:12"]

1. d4 {[%clk 0:03:00]}  Nf6 {[%clk 0:02:58]} 2. Bg5 {[%clk 0:03:01]}  e6 {[%clk 0:02:56]} 3. e4 {[%clk 0:03:00]}  h6 {[%clk 0:02:56]} 4. Bxf6 {[%clk 0:03:00]}  Qxf6 {[%clk 0:02:57]} 5. e5 {[%clk 0:02:59]}  Qg6 {[%clk 0:02:54]} 6. Nf3 {[%clk 0:02:54]}  d6 {[%clk 0:02:51]} 7. Qd3 {[%clk 0:02:53]}  Qxd3 {[%clk 0:02:44]} 8. Bxd3 {[%clk 0:02:54]}  Nc6 {[%clk 0:02:44]} 9. c3 {[%clk 0:02:54]}  dxe5 {[%clk 0:02:43]} 10. dxe5 {[%clk 0:02:49]}  Bd7 {[%clk 0:02:41]} 11. Nbd2 {[%clk 0:02:48]}  O-O-O {[%clk 0:02:41]} 12. O-O-O {[%clk 0:02:47]}  Bc5 {[%clk 0:02:37]} 13. Ne4 {[%clk 0:02:46]}  Bb6 {[%clk 0:02:36]} 14. Bc2 {[%clk 0:02:35]}  Ne7 {[%clk 0:02:33]} 15. Rhe1 {[%clk 0:01:59]}  Ng6 {[%clk 0:02:24]} 16. g3 {[%clk 0:01:54]}  Bc6 {[%clk 0:02:23]} 17. Rxd8+ {[%clk 0:01:52]}  Rxd8 {[%clk 0:02:23]} 18. Re2 {[%clk 0:01:50]}  Ne7 {[%clk 0:02:17]} 19. Nfd2 {[%clk 0:01:48]}  Bb5 {[%clk 0:02:08]} 20. c4 {[%clk 0:01:45]}  Bc6 {[%clk 0:02:08]} 21. f4 {[%clk 0:01:44]}  Bd4 {[%clk 0:01:49]} 22. b4 {[%clk 0:01:38]}  a6 {[%clk 0:01:48]} 23. Nb3 {[%clk 0:01:29]}  Nf5 {[%clk 0:01:42]} 24. Na5 {[%clk 0:01:06]}  Be8 {[%clk 0:01:26]} 25. c5 {[%clk 0:00:49]}  Bb5 {[%clk 0:01:06]} 26. Re1 {[%clk 0:00:49]}  b6 {[%clk 0:01:03]} 27. Nb3 {[%clk 0:00:48]}  Bc4 {[%clk 0:00:54]} 28. cxb6 {[%clk 0:00:39]}  Bxb6 {[%clk 0:00:45]} 29. Nbc5 {[%clk 0:00:30]}  a5 {[%clk 0:00:43]} 30. bxa5 {[%clk 0:00:28]}  Bxa5 {[%clk 0:00:42]} 31. Rd1 {[%clk 0:00:28]}  Rd5 {[%clk 0:00:35]} 32. Bb3 {[%clk 0:00:22]}  Ne3 {[%clk 0:00:29]} 33. Rxd5 {[%clk 0:00:21]}  exd5 {[%clk 0:00:29]} 34. Nd2 {[%clk 0:00:18]}  Bxd2+ {[%clk 0:00:27]} 35. Kxd2 {[%clk 0:00:18]}  Nf1+ {[%clk 0:00:26]} 36. Kc3 {[%clk 0:00:17]}  Bxb3 {[%clk 0:00:26]} 37. axb3 {[%clk 0:00:17]}  Nxh2 {[%clk 0:00:26]} 38. Kd4 {[%clk 0:00:13]}  Nf1 {[%clk 0:00:21]} 39. Kxd5 {[%clk 0:00:11]}  Nxg3 {[%clk 0:00:21]} 40. e6 {[%clk 0:00:10]}  fxe6+ {[%clk 0:00:21]} 41. Nxe6 {[%clk 0:00:11]}  h5 {[%clk 0:00:21]} 42. Nxg7 {[%clk 0:00:10]}  h4 {[%clk 0:00:21]} 43. f5 {[%clk 0:00:06]}  h3 {[%clk 0:00:21]} 44. f6 {[%clk 0:00:06]}  h2 {[%clk 0:00:21]} 45. f7 {[%clk 0:00:05]}  h1=Q+ {[%clk 0:00:21]} 46. Ke6 {[%clk 0:00:06]}  Qe4+ {[%clk 0:00:17]} 47. Kf6 {[%clk 0:00:06]}  Qf4+ {[%clk 0:00:16]} 48. Ke7 {[%clk 0:00:06]}  Qe5+ {[%clk 0:00:15]} 49. Ne6 {[%clk 0:00:06]}  Nf5+ {[%clk 0:00:16]} 50. Kf8 {[%clk 0:00:05]}  Qxe6 {[%clk 0:00:15]} 51. Kg8 {[%clk 0:00:06]}  Qg6+ {[%clk 0:00:14]} 52. Kf8 {[%clk 0:00:06]}  Qg7+ {[%clk 0:00:13]} 53. Ke8 {[%clk 0:00:07]}  Nd6+ {[%clk 0:00:11]} 54. Ke7 {[%clk 0:00:07]}  Qxf7# {[%clk 0:00:12]} 0-1


[Site "https://www.chess.com"]

[Event "Titled Tuesday Blitz November 08 Early 2022"]
[White "Skibbe, Willi"]
[Black "Wong, Yinn Long"]
[WhiteFideId "4682190"]
[BlackFideId "5707684"]
[WhiteElo "2375"]
[BlackElo "2271"]
[Result "0-1"]
[Round "01"]
[TimeControl "180+1"]
[Date "2022.11.09"]
[WhiteClock "0:01:49"]
[BlackClock "0:01:38"]

1. d4 {[%clk 0:02:56]}  Nf6 {[%clk 0:02:59]} 2. c4 {[%clk 0:02:40]}  e6 {[%clk 0:02:58]} 3. Nf3 {[%clk 0:02:40]}  Nc6 {[%clk 0:02:58]} 4. g3 {[%clk 0:02:37]}  Bb4+ {[%clk 0:02:55]} 5. Bd2 {[%clk 0:02:35]}  Qe7 {[%clk 0:02:55]} 6. Bg2 {[%clk 0:02:34]}  Bxd2+ {[%clk 0:02:55]} 7. Nbxd2 {[%clk 0:02:34]}  O-O {[%clk 0:02:55]} 8. O-O {[%clk 0:02:32]}  d6 {[%clk 0:02:56]} 9. Qc2 {[%clk 0:02:32]}  e5 {[%clk 0:02:56]} 10. dxe5 {[%clk 0:02:28]}  dxe5 {[%clk 0:02:52]} 11. Ne4 {[%clk 0:02:27]}  Nxe4 {[%clk 0:02:39]} 12. Qxe4 {[%clk 0:02:26]}  f5 {[%clk 0:02:39]} 13. Qc2 {[%clk 0:02:21]}  e4 {[%clk 0:02:39]} 14. Nd2 {[%clk 0:02:20]}  Be6 {[%clk 0:01:55]} 15. e3 {[%clk 0:02:13]}  Rad8 {[%clk 0:01:52]} 16. Rfd1 {[%clk 0:02:11]}  Ne5 {[%clk 0:01:41]} 17. Qc3 {[%clk 0:02:02]}  Bf7 {[%clk 0:01:39]} 18. Bf1 {[%clk 0:01:58]}  Bh5 {[%clk 0:01:38]} 19. Re1 {[%clk 0:01:49]}  Rxd2 {[%clk 0:01:38]} 0-1


[Site "https://www.chess.com"]

[Event "Titled Tuesday Blitz November 08 Early 2022"]
[White "Storey, Charles H"]
[Black "Perez Ponsa, Federico"]
[WhiteFideId "406686"]
[BlackFideId "117927"]
[WhiteElo "2252"]
[BlackElo "2606"]
[Result "0-1"]
[Round "01"]
[TimeControl "180+1"]
[Date "2022.11.09"]
[WhiteClock "0:00:16"]
[BlackClock "0:00:31"]

1. c4 {[%clk 0:02:58]}  e6 {[%clk 0:02:50]} 2. g3 {[%clk 0:02:57]}  d5 {[%clk 0:02:51]} 3. Bg2 {[%clk 0:02:58]}  Nf6 {[%clk 0:02:32]} 4. Nf3 {[%clk 0:02:55]}  Be7 {[%clk 0:02:32]} 5. d4 {[%clk 0:02:53]}  O-O {[%clk 0:02:31]} 6. O-O {[%clk 0:02:52]}  c6 {[%clk 0:02:30]} 7. Nc3 {[%clk 0:02:50]}  Nbd7 {[%clk 0:02:15]} 8. cxd5 {[%clk 0:02:46]}  exd5 {[%clk 0:02:12]} 9. Bg5 {[%clk 0:02:45]}  h6 {[%clk 0:02:12]} 10. Bxf6 {[%clk 0:02:45]}  Nxf6 {[%clk 0:02:13]} 11. e3 {[%clk 0:02:45]}  Bf5 {[%clk 0:02:13]} 12. a3 {[%clk 0:02:44]}  a5 {[%clk 0:02:12]} 13. Ne5 {[%clk 0:02:39]}  Bd6 {[%clk 0:02:09]} 14. Nd3 {[%clk 0:02:38]}  Re8 {[%clk 0:01:59]} 15. Rb1 {[%clk 0:02:35]}  a4 {[%clk 0:01:56]} 16. Rc1 {[%clk 0:02:26]}  Qb6 {[%clk 0:01:49]} 17. Qd2 {[%clk 0:02:06]}  Qa6 {[%clk 0:01:14]} 18. Rfd1 {[%clk 0:01:53]}  h5 {[%clk 0:01:00]} 19. Bf1 {[%clk 0:01:50]}  Qb6 {[%clk 0:00:59]} 20. Qc2 {[%clk 0:01:47]}  h4 {[%clk 0:00:58]} 21. Nxa4 {[%clk 0:01:42]}  Qc7 {[%clk 0:00:58]} 22. Nc3 {[%clk 0:01:38]}  hxg3 {[%clk 0:00:58]} 23. hxg3 {[%clk 0:01:33]}  Ng4 {[%clk 0:00:57]} 24. Nxd5 {[%clk 0:01:23]}  Qd8 {[%clk 0:00:52]} 25. N5f4 {[%clk 0:01:21]}  Qg5 {[%clk 0:00:53]} 26. Bg2 {[%clk 0:01:00]}  Qh6 {[%clk 0:00:48]} 27. Kf1 {[%clk 0:00:23]}  Rxe3 {[%clk 0:00:47]} 28. Ne5 {[%clk 0:00:18]}  Nh2+ {[%clk 0:00:31]} 29. Kg1 {[%clk 0:00:18]}  Bxc2 {[%clk 0:00:32]} 30. fxe3 {[%clk 0:00:17]}  Bxd1 {[%clk 0:00:32]} 31. Rxd1 {[%clk 0:00:17]}  Bxe5 {[%clk 0:00:33]} 32. dxe5 {[%clk 0:00:17]}  Ng4 {[%clk 0:00:33]} 33. Rd7 {[%clk 0:00:16]}  Nxe5 {[%clk 0:00:31]} 34. Rxb7 {[%clk 0:00:16]}  Rd8 {[%clk 0:00:31]} 0-1


[Site "https://www.chess.com"]

[Event "Titled Tuesday Blitz November 08 Early 2022"]
[White "Tari, Aryan"]
[Black "Barria Santos, Jose Guilherme"]
[WhiteFideId "1510045"]
[BlackFideId "1939300"]
[WhiteElo "2612"]
[BlackElo "2273"]
[Result "1-0"]
[Round "01"]
[TimeControl "180+1"]
[Date "2022.11.09"]
[WhiteClock "0:00:43"]
[BlackClock "0:00:44"]

1. d4 {[%clk 0:03:00]}  Nf6 {[%clk 0:02:54]} 2. Nf3 {[%clk 0:02:56]}  g6 {[%clk 0:02:54]} 3. g3 {[%clk 0:02:53]}  Bg7 {[%clk 0:02:54]} 4. Bg2 {[%clk 0:02:54]}  d6 {[%clk 0:02:54]} 5. O-O {[%clk 0:02:54]}  O-O {[%clk 0:02:55]} 6. c4 {[%clk 0:02:54]}  Nc6 {[%clk 0:02:46]} 7. Nc3 {[%clk 0:02:54]}  Bf5 {[%clk 0:02:42]} 8. Be3 {[%clk 0:02:51]}  Ne4 {[%clk 0:02:22]} 9. Nxe4 {[%clk 0:02:48]}  Bxe4 {[%clk 0:02:23]} 10. d5 {[%clk 0:02:49]}  Bxf3 {[%clk 0:02:23]} 11. exf3 {[%clk 0:02:49]}  Ne5 {[%clk 0:02:24]} 12. Rc1 {[%clk 0:02:46]}  c5 {[%clk 0:02:24]} 13. f4 {[%clk 0:02:43]}  Nd7 {[%clk 0:02:25]} 14. b3 {[%clk 0:02:38]}  a6 {[%clk 0:02:23]} 15. h4 {[%clk 0:02:14]}  b5 {[%clk 0:02:23]} 16. h5 {[%clk 0:02:13]}  Re8 {[%clk 0:02:20]} 17. hxg6 {[%clk 0:02:13]}  hxg6 {[%clk 0:02:21]} 18. f5 {[%clk 0:02:13]}  gxf5 {[%clk 0:02:17]} 19. Qh5 {[%clk 0:02:13]}  Nf6 {[%clk 0:02:08]} 20. Qxf5 {[%clk 0:02:12]}  Qd7 {[%clk 0:02:07]} 21. Qd3 {[%clk 0:02:04]}  Rab8 {[%clk 0:02:04]} 22. Rfe1 {[%clk 0:01:49]}  Qg4 {[%clk 0:01:48]} 23. Bd2 {[%clk 0:01:38]}  Qh5 {[%clk 0:01:45]} 24. f3 {[%clk 0:01:19]}  Qh7 {[%clk 0:01:32]} 25. Qxh7+ {[%clk 0:01:16]}  Kxh7 {[%clk 0:01:30]} 26. Bf1 {[%clk 0:00:54]}  Bh6 {[%clk 0:01:18]} 27. f4 {[%clk 0:00:54]}  Rb7 {[%clk 0:01:06]} 28. Bd3+ {[%clk 0:00:54]}  Kg7 {[%clk 0:01:05]} 29. Kg2 {[%clk 0:00:53]}  Rg8 {[%clk 0:01:04]} 30. Rh1 {[%clk 0:00:48]}  bxc4 {[%clk 0:00:55]} 31. Bxc4 {[%clk 0:00:48]}  Ne4 {[%clk 0:00:54]} 32. Be1 {[%clk 0:00:44]}  Kg6 {[%clk 0:00:45]} 33. Kf3 {[%clk 0:00:43]}  f5 {[%clk 0:00:44]} 34. g4 {[%clk 0:00:43]} 1-0


[Site "https://www.chess.com"]

[Event "Titled Tuesday Blitz November 08 Early 2022"]
[White "Tarnowska, Aleksandra"]
[Black "Averjanov, Alexey"]
[WhiteFideId "1180967"]
[BlackFideId "14109867"]
[WhiteElo "1776"]
[BlackElo "2584"]
[Result "1/2-1/2"]
[Round "01"]
[TimeControl "180+1"]
[Date "2022.11.09"]
[WhiteClock "0:02:58"]
[BlackClock "0:02:53"]

1. e4 {[%clk 0:02:59]}  c6 {[%clk 0:02:59]} 2. d4 {[%clk 0:02:59]}  d5 {[%clk 0:02:59]} 3. Nc3 {[%clk 0:02:59]}  dxe4 {[%clk 0:03:00]} 4. Nxe4 {[%clk 0:02:59]}  Bf5 {[%clk 0:02:59]} 5. Ng3 {[%clk 0:02:59]}  Bg6 {[%clk 0:03:00]} 6. h4 {[%clk 0:02:57]}  h6 {[%clk 0:03:00]} 7. h5 {[%clk 0:02:58]}  Bh7 {[%clk 0:02:59]} 8. Nf3 {[%clk 0:02:58]}  Nd7 {[%clk 0:02:59]} 9. Bd3 {[%clk 0:02:58]}  Bxd3 {[%clk 0:02:53]} 10. Qxd3 {[%clk 0:02:58]}  e6 {[%clk 0:02:53]} 1/2-1/2


[Site "https://www.chess.com"]

[Event "Titled Tuesday Blitz November 08 Early 2022"]
[White "Thomforde-Toates, Noah"]
[Black "Barash, Anton"]
[WhiteFideId "30951992"]
[BlackFideId "30935229"]
[WhiteElo "2607"]
[BlackElo "2243"]
[Result "1-0"]
[Round "01"]
[TimeControl "180+1"]
[Date "2022.11.09"]
[WhiteClock "0:00:14"]
[BlackClock "0:00:03"]

1. d4 {[%clk 0:02:36]}  Nf6 {[%clk 0:02:59]} 2. Nc3 {[%clk 0:02:36]}  g6 {[%clk 0:02:59]} 3. Bf4 {[%clk 0:02:35]}  Bg7 {[%clk 0:03:00]} 4. e3 {[%clk 0:02:33]}  O-O {[%clk 0:03:00]} 5. h4 {[%clk 0:02:33]}  d6 {[%clk 0:02:55]} 6. h5 {[%clk 0:02:31]}  gxh5 {[%clk 0:02:50]} 7. Be2 {[%clk 0:02:12]}  Bg4 {[%clk 0:02:39]} 8. Qd3 {[%clk 0:02:06]}  c5 {[%clk 0:02:24]} 9. f3 {[%clk 0:02:00]}  Be6 {[%clk 0:02:19]} 10. d5 {[%clk 0:01:51]}  Bd7 {[%clk 0:02:19]} 11. g4 {[%clk 0:01:51]}  b5 {[%clk 0:02:03]} 12. g5 {[%clk 0:01:32]}  c4 {[%clk 0:01:50]} 13. Qd2 {[%clk 0:01:27]}  Ne8 {[%clk 0:01:18]} 14. Rxh5 {[%clk 0:01:25]}  Qa5 {[%clk 0:01:06]} 15. a3 {[%clk 0:00:54]}  Na6 {[%clk 0:00:54]} 16. Nh3 {[%clk 0:00:43]}  Nc5 {[%clk 0:00:50]} 17. Nf2 {[%clk 0:00:42]}  b4 {[%clk 0:00:36]} 18. Ncd1 {[%clk 0:00:41]}  Rb8 {[%clk 0:00:23]} 19. Bxc4 {[%clk 0:00:36]}  Bf5 {[%clk 0:00:10]} 20. Nd3 {[%clk 0:00:29]}  Nc7 {[%clk 0:00:06]} 21. Nxc5 {[%clk 0:00:28]}  dxc5 {[%clk 0:00:05]} 22. Bd3 {[%clk 0:00:28]}  Bxd3 {[%clk 0:00:05]} 23. Qxd3 {[%clk 0:00:28]}  bxa3+ {[%clk 0:00:05]} 24. Kf2 {[%clk 0:00:22]}  h6 {[%clk 0:00:05]} 25. gxh6 {[%clk 0:00:19]}  Bf6 {[%clk 0:00:04]} 26. Rxa3 {[%clk 0:00:15]}  Qb4 {[%clk 0:00:03]} 27. Bxc7 {[%clk 0:00:14]} 1-0


[Site "https://www.chess.com"]

[Event "Titled Tuesday Blitz November 08 Early 2022"]
[White "Todev, Simeon"]
[Black "Gabdrakhmanov, Azat"]
[WhiteFideId "2925133"]
[BlackFideId "34189197"]
[WhiteElo "1938"]
[BlackElo "2254"]
[Result "0-1"]
[Round "01"]
[TimeControl "180+1"]
[Date "2022.11.09"]
[WhiteClock "0:00:08"]
[BlackClock "0:00:12"]

1. e4 {[%clk 0:02:58]}  c5 {[%clk 0:03:00]} 2. Nf3 {[%clk 0:02:56]}  e6 {[%clk 0:02:59]} 3. c3 {[%clk 0:02:56]}  d5 {[%clk 0:02:58]} 4. e5 {[%clk 0:02:55]}  d4 {[%clk 0:02:58]} 5. Bd3 {[%clk 0:02:54]}  Nc6 {[%clk 0:02:57]} 6. O-O {[%clk 0:02:52]}  Nge7 {[%clk 0:02:56]} 7. Re1 {[%clk 0:02:52]}  Ng6 {[%clk 0:02:51]} 8. cxd4 {[%clk 0:02:45]}  cxd4 {[%clk 0:02:51]} 9. Bxg6 {[%clk 0:02:38]}  hxg6 {[%clk 0:02:50]} 10. d3 {[%clk 0:02:38]}  Be7 {[%clk 0:02:50]} 11. Na3 {[%clk 0:02:37]}  Qd7 {[%clk 0:02:45]} 12. Nc4 {[%clk 0:02:32]}  b5 {[%clk 0:02:32]} 13. Ncd2 {[%clk 0:02:21]}  Bb7 {[%clk 0:02:29]} 14. Ne4 {[%clk 0:02:20]}  Rc8 {[%clk 0:02:25]} 15. Bf4 {[%clk 0:02:17]}  Nb4 {[%clk 0:02:16]} 16. Nd6+ {[%clk 0:02:11]}  Bxd6 {[%clk 0:02:08]} 17. exd6 {[%clk 0:02:11]}  f6 {[%clk 0:02:04]} 18. Nxd4 {[%clk 0:01:59]}  Bd5 {[%clk 0:01:29]} 19. Qg4 {[%clk 0:01:50]}  Kf7 {[%clk 0:01:22]} 20. Rac1 {[%clk 0:01:17]}  Nxd3 {[%clk 0:01:13]} 21. Rxc8 {[%clk 0:01:15]}  Rxc8 {[%clk 0:01:14]} 22. Re2 {[%clk 0:00:56]}  Nxf4 {[%clk 0:01:06]} 23. Qxf4 {[%clk 0:00:55]}  e5 {[%clk 0:00:41]} 24. Qd2 {[%clk 0:00:44]}  Bc4 {[%clk 0:00:24]} 25. Re3 {[%clk 0:00:30]}  Qxd6 {[%clk 0:00:24]} 26. Nb3 {[%clk 0:00:26]}  Qxd2 {[%clk 0:00:24]} 27. Nxd2 {[%clk 0:00:27]}  Bxa2 {[%clk 0:00:23]} 28. h3 {[%clk 0:00:25]}  Bd5 {[%clk 0:00:23]} 29. Rd3 {[%clk 0:00:25]}  Ke6 {[%clk 0:00:18]} 30. Kh2 {[%clk 0:00:23]}  Rc2 {[%clk 0:00:17]} 31. b4 {[%clk 0:00:21]}  e4 {[%clk 0:00:17]} 32. Nxe4 {[%clk 0:00:07]}  Bxe4 {[%clk 0:00:16]} 33. Ra3 {[%clk 0:00:07]}  Rxf2 {[%clk 0:00:15]} 34. Rxa7 {[%clk 0:00:06]}  Rxg2+ {[%clk 0:00:14]} 35. Kh1 {[%clk 0:00:07]}  Ra2+ {[%clk 0:00:14]} 36. Kg1 {[%clk 0:00:07]}  Rxa7 {[%clk 0:00:15]} 37. h4 {[%clk 0:00:08]}  Ra3 {[%clk 0:00:16]} 38. h5 {[%clk 0:00:09]}  Rh3 {[%clk 0:00:16]} 39. hxg6 {[%clk 0:00:10]}  Bxg6 {[%clk 0:00:14]} 40. Kf2 {[%clk 0:00:11]}  Rb3 {[%clk 0:00:15]} 41. Kg2 {[%clk 0:00:12]}  Rxb4 {[%clk 0:00:10]} 42. Kf3 {[%clk 0:00:12]}  Rc4 {[%clk 0:00:11]} 43. Ke3 {[%clk 0:00:11]}  Kd5 {[%clk 0:00:12]} 44. Kd2 {[%clk 0:00:12]}  b4 {[%clk 0:00:09]} 45. Ke3 {[%clk 0:00:05]}  b3 {[%clk 0:00:10]} 46. Kd2 {[%clk 0:00:06]}  b2 {[%clk 0:00:09]} 47. Ke2 {[%clk 0:00:06]}  b1=Q {[%clk 0:00:10]} 48. Kd2 {[%clk 0:00:07]}  Qa2+ {[%clk 0:00:10]} 49. Kd1 {[%clk 0:00:07]}  Qb3+ {[%clk 0:00:11]} 50. Kd2 {[%clk 0:00:07]}  Rc2+ {[%clk 0:00:12]} 51. Kd1 {[%clk 0:00:08]}  Qb1# {[%clk 0:00:12]} 0-1


[Site "https://www.chess.com"]